[Event "Titled Tuesday Blitz August 24 2021"]
[White "Cunha, Lucas Aguiar"]
[Black "Svane, Frederik"]
[WhiteFideId "2125404"]
[BlackFideId "12923044"]
[WhiteElo "2361"]
[BlackElo "2459"]
[Result "1/2-1/2"]
[Round "04"]
[TimeControl "180+1"]
[Date "2021.08.24"]
[WhiteClock "0:00:04"]
[BlackClock "0:00:04"]

1. e4 {[%clk 0:03:00]}  c5 {[%clk 0:03:00]} 2. Nf3 {[%clk 0:03:00]}  e6 {[%clk 0:03:00]} 3. d4 {[%clk 0:03:01]}  cxd4 {[%clk 0:03:01]} 4. Nxd4 {[%clk 0:03:02]}  Nc6 {[%clk 0:03:01]} 5. Nc3 {[%clk 0:03:02]}  Qc7 {[%clk 0:03:02]} 6. Ndb5 {[%clk 0:03:02]}  Qb8 {[%clk 0:03:02]} 7. Be3 {[%clk 0:03:02]}  a6 {[%clk 0:03:01]} 8. Bb6 {[%clk 0:03:03]}  axb5 {[%clk 0:03:00]} 9. Nxb5 {[%clk 0:03:04]}  Bb4+ {[%clk 0:03:00]} 10. c3 {[%clk 0:03:04]}  Ba5 {[%clk 0:03:00]} 11. Nd6+ {[%clk 0:03:05]}  Kf8 {[%clk 0:02:46]} 12. Bc5 {[%clk 0:03:05]}  Nge7 {[%clk 0:02:44]} 13. Qh5 {[%clk 0:03:05]}  g6 {[%clk 0:02:08]} 14. Qh6+ {[%clk 0:03:04]}  Kg8 {[%clk 0:02:06]} 15. f4 {[%clk 0:03:02]}  f6 {[%clk 0:01:04]} 16. Ne8 {[%clk 0:02:59]}  Kf7 {[%clk 0:01:04]} 17. Qg7+ {[%clk 0:02:33]}  Kxe8 {[%clk 0:01:04]} 18. Qxh8+ {[%clk 0:02:34]}  Kf7 {[%clk 0:01:05]} 19. Qxh7+ {[%clk 0:02:33]}  Ke8 {[%clk 0:01:05]} 20. g3 {[%clk 0:02:10]}  d6 {[%clk 0:00:59]} 21. Be3 {[%clk 0:02:06]}  Bd7 {[%clk 0:00:54]} 22. Bb5 {[%clk 0:01:58]}  Kd8 {[%clk 0:00:50]} 23. Qh8+ {[%clk 0:01:56]}  Kc7 {[%clk 0:00:48]} 24. Qxf6 {[%clk 0:01:56]}  Bb6 {[%clk 0:00:41]} 25. Bxb6+ {[%clk 0:01:51]}  Kxb6 {[%clk 0:00:42]} 26. a4 {[%clk 0:01:52]}  Kc7 {[%clk 0:00:39]} 27. O-O-O {[%clk 0:01:16]}  Qa7 {[%clk 0:00:32]} 28. Rd3 {[%clk 0:01:16]}  Qc5 {[%clk 0:00:28]} 29. Rhd1 {[%clk 0:01:16]}  d5 {[%clk 0:00:23]} 30. Kb1 {[%clk 0:00:56]}  Rd8 {[%clk 0:00:10]} 31. b4 {[%clk 0:00:53]}  Qf2 {[%clk 0:00:06]} 32. c4 {[%clk 0:00:38]}  Nxb4 {[%clk 0:00:04]} 33. R3d2 {[%clk 0:00:38]}  Qe3 {[%clk 0:00:04]} 34. cxd5 {[%clk 0:00:20]}  Qb3+ {[%clk 0:00:04]} 35. Qb2 {[%clk 0:00:19]}  Qxb2+ {[%clk 0:00:03]} 36. Rxb2 {[%clk 0:00:20]}  Bxb5 {[%clk 0:00:03]} 37. Rxb4 {[%clk 0:00:19]}  Be8 {[%clk 0:00:03]} 38. Rc4+ {[%clk 0:00:12]}  Bc6 {[%clk 0:00:03]} 39. d6+ {[%clk 0:00:08]}  Rxd6 {[%clk 0:00:03]} 40. Rxd6 {[%clk 0:00:09]}  Kxd6 {[%clk 0:00:04]} 41. Kc2 {[%clk 0:00:09]}  Kc7 {[%clk 0:00:04]} 42. Kd3 {[%clk 0:00:10]}  Nc8 {[%clk 0:00:04]} 43. Ke3 {[%clk 0:00:09]}  Nb6 {[%clk 0:00:05]} 44. Rd4 {[%clk 0:00:09]}  Nxa4 {[%clk 0:00:05]} 45. g4 {[%clk 0:00:10]}  Nc5 {[%clk 0:00:05]} 46. h4 {[%clk 0:00:10]}  Nd7 {[%clk 0:00:04]} 47. e5 {[%clk 0:00:10]}  b5 {[%clk 0:00:04]} 48. h5 {[%clk 0:00:08]}  gxh5 {[%clk 0:00:04]} 49. gxh5 {[%clk 0:00:09]}  Bd5 {[%clk 0:00:04]} 50. h6 {[%clk 0:00:09]}  Nf8 {[%clk 0:00:05]} 51. Rd1 {[%clk 0:00:08]}  b4 {[%clk 0:00:04]} 52. Rg1 {[%clk 0:00:09]}  b3 {[%clk 0:00:04]} 53. Kd3 {[%clk 0:00:09]}  Kc6 {[%clk 0:00:02]} 54. Kc3 {[%clk 0:00:09]}  Kc5 {[%clk 0:00:02]} 55. Rg8 {[%clk 0:00:09]}  Nh7 {[%clk 0:00:01]} 56. Rc8+ {[%clk 0:00:10]}  Kb6 {[%clk 0:00:01]} 57. Rb8+ {[%clk 0:00:10]}  Kc7 {[%clk 0:00:02]} 58. Rh8 {[%clk 0:00:09]}  Be4 {[%clk 0:00:02]} 59. Kxb3 {[%clk 0:00:09]}  Bf5 {[%clk 0:00:02]} 60. Kc3 {[%clk 0:00:10]}  Kd7 {[%clk 0:00:03]} 61. Kd4 {[%clk 0:00:10]}  Ke7 {[%clk 0:00:03]} 62. Ra8 {[%clk 0:00:10]}  Kf7 {[%clk 0:00:03]} 63. Kc5 {[%clk 0:00:07]}  Kg6 {[%clk 0:00:03]} 64. Kd6 {[%clk 0:00:08]}  Kxh6 {[%clk 0:00:04]} 65. Rg8 {[%clk 0:00:08]}  Kh5 {[%clk 0:00:02]} 66. Ke7 {[%clk 0:00:08]}  Kh6 {[%clk 0:00:03]} 67. Rg1 {[%clk 0:00:07]}  Kh5 {[%clk 0:00:01]} 68. Kf7 {[%clk 0:00:07]}  Kh4 {[%clk 0:00:02]} 69. Rg7 {[%clk 0:00:05]}  Kh3 {[%clk 0:00:01]} 70. Rxh7+ {[%clk 0:00:04]}  Bxh7 {[%clk 0:00:02]} 71. Kxe6 {[%clk 0:00:05]}  Kg4 {[%clk 0:00:03]} 72. Kf6 {[%clk 0:00:05]}  Bf5 {[%clk 0:00:03]} 73. e6 {[%clk 0:00:03]}  Bxe6 {[%clk 0:00:03]} 74. Kxe6 {[%clk 0:00:04]}  Kxf4 {[%clk 0:00:04]} 1/2-1/2


[Site "https://www.chess.com"]

[Event "Titled Tuesday Blitz August 24 2021"]
[White "Demchenko, Anton"]
[Black "De Silva, L M S T"]
[WhiteFideId "4160258"]
[BlackFideId "9953698"]
[WhiteElo "2583"]
[BlackElo "1621"]
[Result "1-0"]
[Round "04"]
[TimeControl "180+1"]
[Date "2021.08.24"]
[WhiteClock "0:00:16"]
[BlackClock "0:00:03"]

1. e4 {[%clk 0:03:00]}  e5 {[%clk 0:03:00]} 2. Nf3 {[%clk 0:02:59]}  Nc6 {[%clk 0:03:00]} 3. Nc3 {[%clk 0:02:58]}  Nf6 {[%clk 0:03:00]} 4. g3 {[%clk 0:02:58]}  d5 {[%clk 0:02:54]} 5. exd5 {[%clk 0:02:58]}  Nxd5 {[%clk 0:02:54]} 6. Bg2 {[%clk 0:02:59]}  Nxc3 {[%clk 0:02:54]} 7. bxc3 {[%clk 0:03:00]}  Bd6 {[%clk 0:02:54]} 8. O-O {[%clk 0:03:00]}  O-O {[%clk 0:02:54]} 9. d4 {[%clk 0:02:58]}  Bg4 {[%clk 0:02:53]} 10. h3 {[%clk 0:02:58]}  Bh5 {[%clk 0:02:53]} 11. g4 {[%clk 0:02:57]}  Bg6 {[%clk 0:02:53]} 12. Rb1 {[%clk 0:02:58]}  Rb8 {[%clk 0:02:52]} 13. Bg5 {[%clk 0:02:50]}  f6 {[%clk 0:02:48]} 14. Be3 {[%clk 0:02:50]}  Re8 {[%clk 0:02:41]} 15. Nh4 {[%clk 0:02:32]}  Bf7 {[%clk 0:02:35]} 16. a4 {[%clk 0:02:33]}  exd4 {[%clk 0:02:23]} 17. cxd4 {[%clk 0:02:33]}  Ne7 {[%clk 0:02:22]} 18. Qd3 {[%clk 0:02:13]}  Nd5 {[%clk 0:02:10]} 19. c4 {[%clk 0:02:10]}  Nxe3 {[%clk 0:02:10]} 20. fxe3 {[%clk 0:02:11]}  c5 {[%clk 0:02:08]} 21. Nf5 {[%clk 0:02:04]}  cxd4 {[%clk 0:02:07]} 22. exd4 {[%clk 0:02:03]}  Bg6 {[%clk 0:01:53]} 23. c5 {[%clk 0:01:56]}  Bc7 {[%clk 0:01:37]} 24. Rxb7 {[%clk 0:01:48]}  Rxb7 {[%clk 0:01:35]} 25. Bxb7 {[%clk 0:01:49]}  Kh8 {[%clk 0:01:32]} 26. Bc6 {[%clk 0:01:31]}  Bxf5 {[%clk 0:01:26]} 27. gxf5 {[%clk 0:01:26]}  Re5 {[%clk 0:01:16]} 28. Rd1 {[%clk 0:01:13]}  Re7 {[%clk 0:01:11]} 29. d5 {[%clk 0:01:09]}  Bf4 {[%clk 0:01:07]} 30. d6 {[%clk 0:01:01]}  Re3 {[%clk 0:01:06]} 31. Qd4 {[%clk 0:01:01]}  Rg3+ {[%clk 0:00:53]} 32. Kf2 {[%clk 0:00:51]}  Be5 {[%clk 0:00:49]} 33. Qb4 {[%clk 0:00:40]}  Rxh3 {[%clk 0:00:36]} 34. Rb1 {[%clk 0:00:41]}  Rh2+ {[%clk 0:00:27]} 35. Kg1 {[%clk 0:00:41]}  Rc2 {[%clk 0:00:07]} 36. Qb8 {[%clk 0:00:40]}  Rc1+ {[%clk 0:00:07]} 37. Kg2 {[%clk 0:00:24]}  Rc2+ {[%clk 0:00:06]} 38. Kf3 {[%clk 0:00:24]}  Rc3+ {[%clk 0:00:06]} 39. Ke2 {[%clk 0:00:24]}  Rc2+ {[%clk 0:00:06]} 40. Kd3 {[%clk 0:00:24]}  Rc3+ {[%clk 0:00:07]} 41. Kd2 {[%clk 0:00:25]}  Qg8 {[%clk 0:00:02]} 42. Qxg8+ {[%clk 0:00:23]}  Kxg8 {[%clk 0:00:03]} 43. Rb8+ {[%clk 0:00:18]}  Kf7 {[%clk 0:00:03]} 44. Bd5# {[%clk 0:00:16]} 1-0


[Site "https://www.chess.com"]

[Event "Titled Tuesday Blitz August 24 2021"]
[White "Dobrowolski, Piotr"]
[Black "Zubov, Alexander"]
[WhiteFideId "1106236"]
[BlackFideId "14109409"]
[WhiteElo "2296"]
[BlackElo "2740"]
[Result "1/2-1/2"]
[Round "04"]
[TimeControl "180+1"]
[Date "2021.08.24"]
[WhiteClock "0:00:03"]
[BlackClock "0:00:10"]

1. e4 {[%clk 0:03:00]}  c5 {[%clk 0:02:59]} 2. c3 {[%clk 0:03:00]}  Nf6 {[%clk 0:02:59]} 3. e5 {[%clk 0:03:01]}  Nd5 {[%clk 0:02:59]} 4. d4 {[%clk 0:03:01]}  cxd4 {[%clk 0:02:58]} 5. Nf3 {[%clk 0:03:02]}  e6 {[%clk 0:02:59]} 6. cxd4 {[%clk 0:03:02]}  d6 {[%clk 0:02:59]} 7. Bc4 {[%clk 0:03:02]}  Nc6 {[%clk 0:02:59]} 8. O-O {[%clk 0:03:02]}  Be7 {[%clk 0:03:00]} 9. exd6 {[%clk 0:02:55]}  Qxd6 {[%clk 0:02:56]} 10. Nc3 {[%clk 0:02:55]}  O-O {[%clk 0:02:56]} 11. Re1 {[%clk 0:02:55]}  Rd8 {[%clk 0:02:53]} 12. Bb3 {[%clk 0:02:55]}  Qc7 {[%clk 0:02:45]} 13. Nxd5 {[%clk 0:02:47]}  exd5 {[%clk 0:02:45]} 14. Ne5 {[%clk 0:02:35]}  Nxe5 {[%clk 0:02:40]} 15. dxe5 {[%clk 0:02:35]}  Be6 {[%clk 0:02:30]} 16. Qd3 {[%clk 0:02:22]}  Qb6 {[%clk 0:02:22]} 17. Bd2 {[%clk 0:01:59]}  Bc5 {[%clk 0:02:05]} 18. Qg3 {[%clk 0:01:52]}  d4 {[%clk 0:01:56]} 19. Bg5 {[%clk 0:01:38]}  Rd7 {[%clk 0:01:54]} 20. Bf6 {[%clk 0:01:36]}  Bf8 {[%clk 0:01:51]} 21. Re4 {[%clk 0:01:16]}  Bf5 {[%clk 0:01:20]} 22. Rf4 {[%clk 0:01:16]}  Bg6 {[%clk 0:01:20]} 23. h4 {[%clk 0:01:10]}  Kh8 {[%clk 0:00:58]} 24. e6 {[%clk 0:00:51]}  fxe6 {[%clk 0:00:49]} 25. Be5 {[%clk 0:00:51]}  Bd6 {[%clk 0:00:42]} 26. Re1 {[%clk 0:00:43]}  Bxe5 {[%clk 0:00:38]} 27. Rxe5 {[%clk 0:00:42]}  d3 {[%clk 0:00:38]} 28. Rxe6 {[%clk 0:00:39]}  Qxb3 {[%clk 0:00:27]} 29. axb3 {[%clk 0:00:35]}  d2 {[%clk 0:00:27]} 30. Rd6 {[%clk 0:00:34]}  d1=Q+ {[%clk 0:00:20]} 31. Rxd1 {[%clk 0:00:34]}  Rxd1+ {[%clk 0:00:21]} 32. Kh2 {[%clk 0:00:34]}  Rd5 {[%clk 0:00:21]} 33. Rg4 {[%clk 0:00:33]}  Rad8 {[%clk 0:00:20]} 34. Rg5 {[%clk 0:00:33]}  R5d7 {[%clk 0:00:20]} 35. h5 {[%clk 0:00:33]}  Bc2 {[%clk 0:00:20]} 36. h6 {[%clk 0:00:33]}  Bg6 {[%clk 0:00:20]} 37. Qe5 {[%clk 0:00:28]}  Kg8 {[%clk 0:00:20]} 38. Qe6+ {[%clk 0:00:25]}  Kh8 {[%clk 0:00:19]} 39. hxg7+ {[%clk 0:00:25]}  Kxg7 {[%clk 0:00:20]} 40. f4 {[%clk 0:00:24]}  Rd6 {[%clk 0:00:13]} 41. Qe5+ {[%clk 0:00:24]}  Kf8 {[%clk 0:00:12]} 42. f5 {[%clk 0:00:23]}  Bf7 {[%clk 0:00:12]} 43. f6 {[%clk 0:00:18]}  R8d7 {[%clk 0:00:10]} 44. Qg3 {[%clk 0:00:17]}  Rxf6 {[%clk 0:00:09]} 45. Qb8+ {[%clk 0:00:17]}  Ke7 {[%clk 0:00:10]} 46. Re5+ {[%clk 0:00:17]}  Re6 {[%clk 0:00:10]} 47. Rxe6+ {[%clk 0:00:17]}  Bxe6 {[%clk 0:00:11]} 48. Qxa7 {[%clk 0:00:16]}  Bf5 {[%clk 0:00:12]} 49. Qc5+ {[%clk 0:00:16]}  Kf6 {[%clk 0:00:13]} 50. Qc3+ {[%clk 0:00:16]}  Kg6 {[%clk 0:00:13]} 51. Qf3 {[%clk 0:00:16]}  h5 {[%clk 0:00:13]} 52. Qg3+ {[%clk 0:00:16]}  Bg4 {[%clk 0:00:13]} 53. Qe5 {[%clk 0:00:16]}  Kf7 {[%clk 0:00:13]} 54. Kg3 {[%clk 0:00:16]}  Kf8 {[%clk 0:00:14]} 55. Kf4 {[%clk 0:00:16]}  Re7 {[%clk 0:00:14]} 56. Qd6 {[%clk 0:00:15]}  Kf7 {[%clk 0:00:14]} 57. Kg5 {[%clk 0:00:16]}  Rd7 {[%clk 0:00:15]} 58. Qf4+ {[%clk 0:00:16]}  Ke8 {[%clk 0:00:16]} 59. Qe5+ {[%clk 0:00:15]}  Kd8 {[%clk 0:00:16]} 60. Qb8+ {[%clk 0:00:15]}  Ke7 {[%clk 0:00:16]} 61. Qg8 {[%clk 0:00:15]}  Kd6 {[%clk 0:00:16]} 62. Qf8+ {[%clk 0:00:15]}  Kc7 {[%clk 0:00:17]} 63. Qc5+ {[%clk 0:00:15]}  Kb8 {[%clk 0:00:17]} 64. Kf6 {[%clk 0:00:15]}  Rd1 {[%clk 0:00:16]} 65. Qe5+ {[%clk 0:00:15]}  Kc8 {[%clk 0:00:16]} 66. b4 {[%clk 0:00:15]}  Rd7 {[%clk 0:00:15]} 67. b5 {[%clk 0:00:14]}  b6 {[%clk 0:00:13]} 68. Qe4 {[%clk 0:00:12]}  Rd6+ {[%clk 0:00:12]} 69. Ke7 {[%clk 0:00:11]}  Rd7+ {[%clk 0:00:13]} 70. Kf6 {[%clk 0:00:11]}  Rd6+ {[%clk 0:00:13]} 71. Kg5 {[%clk 0:00:12]}  Kd7 {[%clk 0:00:13]} 72. Qb7+ {[%clk 0:00:12]}  Ke6 {[%clk 0:00:13]} 73. Qe4+ {[%clk 0:00:11]}  Kf7 {[%clk 0:00:14]} 74. Qf4+ {[%clk 0:00:10]}  Ke6 {[%clk 0:00:14]} 75. Qf6+ {[%clk 0:00:10]}  Kd5 {[%clk 0:00:14]} 76. Qf2 {[%clk 0:00:09]}  Kc4 {[%clk 0:00:14]} 77. Qf4+ {[%clk 0:00:09]}  Kc5 {[%clk 0:00:13]} 78. b4+ {[%clk 0:00:09]}  Kd5 {[%clk 0:00:14]} 79. Qd2+ {[%clk 0:00:09]}  Ke6 {[%clk 0:00:14]} 80. Qe3+ {[%clk 0:00:09]}  Kd5 {[%clk 0:00:14]} 81. Kf4 {[%clk 0:00:08]}  Rf6+ {[%clk 0:00:13]} 82. Kg3 {[%clk 0:00:07]}  Re6 {[%clk 0:00:12]} 83. Qd3+ {[%clk 0:00:07]}  Ke5 {[%clk 0:00:12]} 84. Qe3+ {[%clk 0:00:07]}  Kd5 {[%clk 0:00:13]} 85. Qd2+ {[%clk 0:00:05]}  Kc4 {[%clk 0:00:12]} 86. Qa2+ {[%clk 0:00:04]}  Kxb4 {[%clk 0:00:12]} 87. Qb2+ {[%clk 0:00:05]}  Kc5 {[%clk 0:00:13]} 88. Qb3 {[%clk 0:00:04]}  Re2 {[%clk 0:00:12]} 89. Kf4 {[%clk 0:00:04]}  Re6 {[%clk 0:00:11]} 90. g3 {[%clk 0:00:04]}  Re2 {[%clk 0:00:11]} 91. Qb1 {[%clk 0:00:03]}  Re6 {[%clk 0:00:11]} 92. Qb3 {[%clk 0:00:02]}  Re2 {[%clk 0:00:10]} 93. Qb1 {[%clk 0:00:03]}  Re6 {[%clk 0:00:10]} 94. Qb3 {[%clk 0:00:03]} 1/2-1/2


[Site "https://www.chess.com"]

[Event "Titled Tuesday Blitz August 24 2021"]
[White "Erdogmus, Yagiz Kaan"]
[Black "Taboas Rodriguez, Daniel"]
[WhiteFideId "44599790"]
[BlackFideId "2208466"]
[WhiteElo "1783"]
[BlackElo "2429"]
[Result "0-1"]
[Round "04"]
[TimeControl "180+1"]
[Date "2021.08.24"]
[WhiteClock "0:00:06"]
[BlackClock "0:00:30"]

1. e4 {[%clk 0:03:00]}  e6 {[%clk 0:02:59]} 2. d4 {[%clk 0:03:00]}  d5 {[%clk 0:03:00]} 3. Nd2 {[%clk 0:03:00]}  Nc6 {[%clk 0:03:00]} 4. Ngf3 {[%clk 0:03:00]}  Nf6 {[%clk 0:03:01]} 5. e5 {[%clk 0:03:00]}  Ne4 {[%clk 0:03:01]} 6. Bd3 {[%clk 0:02:47]}  Nxd2 {[%clk 0:03:00]} 7. Bxd2 {[%clk 0:02:46]}  Nb4 {[%clk 0:03:01]} 8. Be2 {[%clk 0:02:43]}  c5 {[%clk 0:03:01]} 9. c3 {[%clk 0:02:37]}  Nc6 {[%clk 0:03:01]} 10. dxc5 {[%clk 0:02:28]}  Bxc5 {[%clk 0:03:02]} 11. O-O {[%clk 0:02:28]}  O-O {[%clk 0:03:02]} 12. Bd3 {[%clk 0:02:27]}  f6 {[%clk 0:02:59]} 13. b4 {[%clk 0:02:20]}  Bb6 {[%clk 0:02:59]} 14. b5 {[%clk 0:02:16]}  Nxe5 {[%clk 0:02:48]} 15. Nxe5 {[%clk 0:02:15]}  fxe5 {[%clk 0:02:49]} 16. Qe2 {[%clk 0:02:14]}  e4 {[%clk 0:02:48]} 17. Bc2 {[%clk 0:02:14]}  Qf6 {[%clk 0:02:48]} 18. Bb3 {[%clk 0:02:10]}  Qe5 {[%clk 0:02:26]} 19. Rae1 {[%clk 0:01:55]}  Bd7 {[%clk 0:02:24]} 20. c4 {[%clk 0:01:55]}  Rae8 {[%clk 0:02:23]} 21. Bb4 {[%clk 0:01:42]}  Rf6 {[%clk 0:02:20]} 22. Rd1 {[%clk 0:00:58]}  d4 {[%clk 0:02:14]} 23. c5 {[%clk 0:00:55]}  Bc7 {[%clk 0:02:14]} 24. g3 {[%clk 0:00:55]}  d3 {[%clk 0:02:06]} 25. Qe1 {[%clk 0:00:50]}  Bxb5 {[%clk 0:02:05]} 26. Bc3 {[%clk 0:00:51]}  Qf5 {[%clk 0:01:51]} 27. Bxf6 {[%clk 0:00:51]}  gxf6 {[%clk 0:01:51]} 28. Qe3 {[%clk 0:00:48]}  Bc6 {[%clk 0:01:24]} 29. Bc4 {[%clk 0:00:35]}  Kh8 {[%clk 0:01:22]} 30. f3 {[%clk 0:00:34]}  exf3 {[%clk 0:01:20]} 31. Bxd3 {[%clk 0:00:33]}  Qh5 {[%clk 0:01:18]} 32. Be4 {[%clk 0:00:31]}  Bxe4 {[%clk 0:01:16]} 33. Qxe4 {[%clk 0:00:31]}  Qxc5+ {[%clk 0:01:16]} 34. Kh1 {[%clk 0:00:31]}  f2 {[%clk 0:01:14]} 35. Rd7 {[%clk 0:00:29]}  Re7 {[%clk 0:01:11]} 36. Rxe7 {[%clk 0:00:27]}  Qxe7 {[%clk 0:01:12]} 37. Rxf2 {[%clk 0:00:22]}  Be5 {[%clk 0:01:08]} 38. Rc2 {[%clk 0:00:20]}  Qd7 {[%clk 0:01:01]} 39. Kg2 {[%clk 0:00:17]}  Bd4 {[%clk 0:00:55]} 40. Rd2 {[%clk 0:00:10]}  e5 {[%clk 0:00:55]} 41. Qh4 {[%clk 0:00:08]}  Qc6+ {[%clk 0:00:52]} 42. Kh3 {[%clk 0:00:08]}  Qe6+ {[%clk 0:00:52]} 43. g4 {[%clk 0:00:08]}  Kg7 {[%clk 0:00:49]} 44. Rc2 {[%clk 0:00:05]}  Bb6 {[%clk 0:00:43]} 45. Qg3 {[%clk 0:00:03]}  e4 {[%clk 0:00:42]} 46. Qf4 {[%clk 0:00:02]}  e3 {[%clk 0:00:41]} 47. Re2 {[%clk 0:00:03]}  h5 {[%clk 0:00:40]} 48. Kg3 {[%clk 0:00:02]}  Qd5 {[%clk 0:00:37]} 49. gxh5 {[%clk 0:00:01]}  Qxh5 {[%clk 0:00:38]} 50. Qe4 {[%clk 0:00:01]}  Qxe2 {[%clk 0:00:37]} 51. Qe7+ {[%clk 0:00:01]}  Kg6 {[%clk 0:00:37]} 52. Qe4+ {[%clk 0:00:02]}  Kg5 {[%clk 0:00:36]} 53. Qf4+ {[%clk 0:00:01]}  Kg6 {[%clk 0:00:32]} 54. Qe4+ {[%clk 0:00:01]}  Kf7 {[%clk 0:00:31]} 55. Qh7+ {[%clk 0:00:01]}  Ke6 {[%clk 0:00:32]} 56. Qe4+ {[%clk 0:00:02]}  Kd6 {[%clk 0:00:32]} 57. Qf4+ {[%clk 0:00:03]}  Kd5 {[%clk 0:00:30]} 58. Qf5+ {[%clk 0:00:03]}  Kd4 {[%clk 0:00:30]} 59. Qxf6+ {[%clk 0:00:03]}  Kd3 {[%clk 0:00:30]} 60. Qg6+ {[%clk 0:00:04]}  Kd2 {[%clk 0:00:30]} 61. Qd6+ {[%clk 0:00:04]}  Qd3 {[%clk 0:00:31]} 62. Qb4+ {[%clk 0:00:05]}  Kc2 {[%clk 0:00:30]} 63. Qa4+ {[%clk 0:00:04]}  Kb2 {[%clk 0:00:30]} 64. Qb4+ {[%clk 0:00:05]}  Kxa2 {[%clk 0:00:31]} 65. Qa4+ {[%clk 0:00:05]}  Kb2 {[%clk 0:00:31]} 66. Qb4+ {[%clk 0:00:06]}  Kc2 {[%clk 0:00:31]} 67. Qa4+ {[%clk 0:00:07]}  Qb3 {[%clk 0:00:30]} 68. Qe4+ {[%clk 0:00:07]}  Kb2 {[%clk 0:00:29]} 69. Qe5+ {[%clk 0:00:06]}  Ka2 {[%clk 0:00:29]} 70. Kf3 {[%clk 0:00:05]}  e2+ {[%clk 0:00:26]} 71. Kxe2 {[%clk 0:00:05]}  Qb2+ {[%clk 0:00:26]} 72. Qxb2+ {[%clk 0:00:04]}  Kxb2 {[%clk 0:00:27]} 73. Kd3 {[%clk 0:00:05]}  a5 {[%clk 0:00:27]} 74. h4 {[%clk 0:00:05]}  a4 {[%clk 0:00:28]} 75. h5 {[%clk 0:00:06]}  a3 {[%clk 0:00:27]} 76. h6 {[%clk 0:00:06]}  Bd8 {[%clk 0:00:27]} 77. h7 {[%clk 0:00:07]}  Bf6 {[%clk 0:00:28]} 78. Kc4 {[%clk 0:00:07]}  a2 {[%clk 0:00:28]} 79. Kb4 {[%clk 0:00:08]}  a1=Q {[%clk 0:00:28]} 80. h8=Q {[%clk 0:00:09]}  Bxh8 {[%clk 0:00:27]} 81. Kb5 {[%clk 0:00:08]}  Qa6+ {[%clk 0:00:27]} 82. Kb4 {[%clk 0:00:08]}  Qa3+ {[%clk 0:00:28]} 83. Kc4 {[%clk 0:00:07]}  Qb3+ {[%clk 0:00:27]} 84. Kc5 {[%clk 0:00:07]}  b5 {[%clk 0:00:27]} 85. Kb6 {[%clk 0:00:06]}  b4 {[%clk 0:00:28]} 86. Ka5 {[%clk 0:00:07]}  Qa3+ {[%clk 0:00:27]} 87. Kb6 {[%clk 0:00:08]}  b3 {[%clk 0:00:28]} 88. Kb5 {[%clk 0:00:07]}  Ka2 {[%clk 0:00:29]} 89. Kc4 {[%clk 0:00:07]}  b2 {[%clk 0:00:29]} 90. Kd5 {[%clk 0:00:05]}  b1=Q {[%clk 0:00:30]} 91. Kc4 {[%clk 0:00:05]}  Qe4+ {[%clk 0:00:29]} 92. Kb5 {[%clk 0:00:06]}  Qab4+ {[%clk 0:00:29]} 93. Ka6 {[%clk 0:00:06]}  Qa8# {[%clk 0:00:30]} 0-1


[Site "https://www.chess.com"]

[Event "Titled Tuesday Blitz August 24 2021"]
[White "Eynullayev, Atilla"]
[Black "Skliarov, Viktor"]
[WhiteFideId "13413570"]
[BlackFideId "14106736"]
[WhiteElo "1997"]
[BlackElo "2281"]
[Result "0-1"]
[Round "04"]
[TimeControl "180+1"]
[Date "2021.08.24"]
[WhiteClock "0:00:02"]
[BlackClock "0:00:40"]

1. e4 {[%clk 0:03:00]}  c5 {[%clk 0:02:59]} 2. Nf3 {[%clk 0:02:58]}  Nc6 {[%clk 0:02:59]} 3. Bb5 {[%clk 0:02:57]}  e6 {[%clk 0:02:59]} 4. O-O {[%clk 0:02:57]}  Nge7 {[%clk 0:03:00]} 5. Re1 {[%clk 0:02:57]}  Nd4 {[%clk 0:02:59]} 6. Bf1 {[%clk 0:02:53]}  Nxf3+ {[%clk 0:02:57]} 7. Qxf3 {[%clk 0:02:53]}  Ng6 {[%clk 0:02:58]} 8. c3 {[%clk 0:02:52]}  Be7 {[%clk 0:02:54]} 9. d4 {[%clk 0:02:52]}  cxd4 {[%clk 0:02:54]} 10. cxd4 {[%clk 0:02:52]}  O-O {[%clk 0:02:54]} 11. Nc3 {[%clk 0:02:52]}  b6 {[%clk 0:02:54]} 12. Be3 {[%clk 0:02:28]}  Bb7 {[%clk 0:02:51]} 13. Qe2 {[%clk 0:02:20]}  f5 {[%clk 0:02:44]} 14. exf5 {[%clk 0:02:18]}  Rxf5 {[%clk 0:02:43]} 15. d5 {[%clk 0:02:03]}  Bxd5 {[%clk 0:02:38]} 16. Nxd5 {[%clk 0:02:00]}  Rxd5 {[%clk 0:02:37]} 17. g3 {[%clk 0:02:00]}  Rc8 {[%clk 0:02:33]} 18. Bg2 {[%clk 0:02:00]}  Rf5 {[%clk 0:02:31]} 19. Rad1 {[%clk 0:02:00]}  Bc5 {[%clk 0:02:27]} 20. Bh3 {[%clk 0:01:52]}  Re5 {[%clk 0:02:13]} 21. Qf3 {[%clk 0:01:25]}  Bxe3 {[%clk 0:02:08]} 22. Rxe3 {[%clk 0:01:25]}  Rxe3 {[%clk 0:02:09]} 23. Qxe3 {[%clk 0:01:26]}  Nf8 {[%clk 0:02:01]} 24. Qa3 {[%clk 0:00:52]}  Qf6 {[%clk 0:01:31]} 25. Rd2 {[%clk 0:00:48]}  Rc1+ {[%clk 0:01:23]} 26. Kg2 {[%clk 0:00:48]}  Qg5 {[%clk 0:00:56]} 27. Qd3 {[%clk 0:00:28]}  Qe5 {[%clk 0:00:50]} 28. Re2 {[%clk 0:00:20]}  Qc5 {[%clk 0:00:49]} 29. Bg4 {[%clk 0:00:16]}  Qc4 {[%clk 0:00:45]} 30. Qe3 {[%clk 0:00:04]}  Qxg4 {[%clk 0:00:40]} 31. Qxc1 {[%clk 0:00:02]}  Qxe2 {[%clk 0:00:40]} 0-1


[Site "https://www.chess.com"]

[Event "Titled Tuesday Blitz August 24 2021"]
[White "Gelman, Alexander"]
[Black "Praggnanandhaa R"]
[WhiteFideId "4118316"]
[BlackFideId "25059530"]
[WhiteElo "2375"]
[BlackElo "2555"]
[Result "0-1"]
[Round "04"]
[TimeControl "180+1"]
[Date "2021.08.24"]
[WhiteClock "0:00:12"]
[BlackClock "0:01:09"]

1. d4 {[%clk 0:03:00]}  Nf6 {[%clk 0:02:58]} 2. Nc3 {[%clk 0:02:58]}  d5 {[%clk 0:02:55]} 3. Bf4 {[%clk 0:02:58]}  a6 {[%clk 0:02:54]} 4. e3 {[%clk 0:02:59]}  Bf5 {[%clk 0:02:53]} 5. f3 {[%clk 0:02:58]}  h5 {[%clk 0:02:51]} 6. Bd3 {[%clk 0:02:46]}  Bxd3 {[%clk 0:02:51]} 7. cxd3 {[%clk 0:02:47]}  e6 {[%clk 0:02:50]} 8. Nh3 {[%clk 0:02:46]}  Nc6 {[%clk 0:02:48]} 9. Ng5 {[%clk 0:02:40]}  h4 {[%clk 0:02:45]} 10. Qb3 {[%clk 0:02:30]}  Rb8 {[%clk 0:02:43]} 11. Rc1 {[%clk 0:02:29]}  Nh5 {[%clk 0:02:40]} 12. Nh3 {[%clk 0:02:27]}  Be7 {[%clk 0:02:37]} 13. e4 {[%clk 0:01:21]}  Nxd4 {[%clk 0:02:34]} 14. Qa4+ {[%clk 0:01:21]}  Nc6 {[%clk 0:02:34]} 15. Bd2 {[%clk 0:01:17]}  Qd7 {[%clk 0:02:31]} 16. O-O {[%clk 0:01:15]}  dxe4 {[%clk 0:02:05]} 17. Nxe4 {[%clk 0:00:59]}  Nd4 {[%clk 0:02:02]} 18. Qd1 {[%clk 0:00:53]}  Nf5 {[%clk 0:02:01]} 19. Bc3 {[%clk 0:00:50]}  Nf6 {[%clk 0:02:00]} 20. Qe2 {[%clk 0:00:43]}  Nd5 {[%clk 0:01:59]} 21. Bd2 {[%clk 0:00:42]}  Nb4 {[%clk 0:01:49]} 22. Nf4 {[%clk 0:00:27]}  Rd8 {[%clk 0:01:39]} 23. a3 {[%clk 0:00:17]}  Nc6 {[%clk 0:01:33]} 24. Kh1 {[%clk 0:00:16]}  Ncd4 {[%clk 0:01:31]} 25. Qd1 {[%clk 0:00:16]}  e5 {[%clk 0:01:28]} 26. Ne2 {[%clk 0:00:14]}  c6 {[%clk 0:01:18]} 27. Nxd4 {[%clk 0:00:14]}  Qxd4 {[%clk 0:01:18]} 28. Bc3 {[%clk 0:00:14]}  Qd5 {[%clk 0:01:16]} 29. f4 {[%clk 0:00:14]}  Ne3 {[%clk 0:01:11]} 30. Qf3 {[%clk 0:00:12]}  Nxf1 {[%clk 0:01:11]} 31. Rxf1 {[%clk 0:00:13]}  Qxd3 {[%clk 0:01:10]} 32. Qg4 {[%clk 0:00:12]}  Qxf1# {[%clk 0:01:09]} 0-1


[Site "https://www.chess.com"]